bitfinex/quotes_BTCUSD_20240901
["timestamp","ask_amount","ask_price","bid_price","bid_amount"]
[1725191369738,4.45082952,58236.0,58235.0,0.0008998]
[1725191369989,4.45082952,58236.0,58235.0,0.01617176]
[1725191371186,4.55082952,58236.0,58235.0,0.01617176]
[1725191371388,4.52387176,58236.0,58235.0,0.01617176]
[1725191374235,4.52387176,58236.0,58235.0,0.0008998]
[1725191374688,4.52387176,58236.0,58235.0,0.0643998]
[1725191375222,4.18044176,58236.0,58235.0,0.0693998]
[1725191375462,2.42573776,58236.0,58235.0,0.0693998]
[1725191375703,2.45269201,58236.0,58235.0,0.0693998]
[1725191376882,2.45269201,58236.0,58235.0,0.08540176]
[1725191379038,2.45269201,58236.0,58235.0,0.0693998]
[1725191381382,2.42573776,58236.0,58235.0,0.0693998]
[1725191382085,2.45269259,58236.0,58235.0,0.0693998]
[1725191382929,2.45269259,58236.0,58235.0,0.0058998]
[1725191385859,3.77145359,58236.0,58235.0,0.0058998]
[1725191386060,3.68446359,58236.0,58235.0,0.0058998]
[1725191386400,3.61687359,58236.0,58235.0,0.0058998]
[1725191387916,3.17093159,58236.0,58235.0,0.0058998]
[1725191398456,1.33621659,58236.0,58235.0,0.0058998]
[1725191398942,3.44828059,58236.0,58235.0,0.0058998]
[1725191399161,1.33621659,58236.0,58235.0,0.0058998]
[1725191399366,3.59999359,58236.0,58235.0,0.0058998]
[1725191399594,3.58800059,58236.0,58235.0,0.0058998]
[1725191400210,3.44800059,58236.0,58235.0,0.0058998]
[1725191403387,3.29673959,58236.0,58235.0,0.02190176]
[1725191403583,3.20751259,58236.0,58235.0,0.02190176]
[1725191404987,2.65015459,58236.0,58235.0,0.02190176]
[1725191405939,2.60950959,58236.0,58235.0,0.02190176]
[1725191406369,2.36503959,58236.0,58235.0,0.02190176]
[1725191406975,2.25403059,58236.0,58235.0,0.02190176]
[1725191407354,2.07720859,58236.0,58235.0,0.08430176]
[1725191409398,0.54591783,58236.0,58235.0,0.17290176]
[1725191409611,0.88934783,58236.0,58235.0,0.1568998]
[1725191410037,1.68698783,58236.0,58235.0,0.1568998]
[1725191411082,2.03041783,58236.0,58235.0,0.1568998]
[1725191411298,2.13041783,58236.0,58235.0,0.1568998]
[1725191411524,2.12841783,58236.0,58235.0,0.1658998]
[1725191411956,2.12941783,58236.0,58235.0,0.1668998]
[1725191413597,2.04564183,58236.0,58235.0,0.1668998]
[1725191414586,1.65555983,58236.0,58235.0,0.18359176]
[1725191415031,1.59355983,58236.0,58235.0,0.18359176]
[1725191416480,1.56035983,58236.0,58235.0,0.18359176]
[1725191416686,1.54375983,58236.0,58235.0,0.18359176]
[1725191424979,1.56175001,58236.0,58235.0,0.18359176]
[1725191425337,1.54375983,58236.0,58235.0,0.18359176]
[1725191427450,1.33177783,58236.0,58235.0,0.18359176]
[1725191427648,1.53957683,58236.0,58235.0,0.18359176]
[1725191428637,1.33177783,58236.0,58235.0,0.18359176]
[1725191429692,1.47361483,58236.0,58235.0,0.18359176]
[1725191429893,1.46162183,58236.0,58235.0,0.18359176]
[1725191430480,1.33177783,58236.0,58235.0,0.18359176]
[1725191430688,0.98834783,58236.0,58235.0,0.18359176]
[1725191430928,0.961393,58236.0,58235.0,0.18359176]
[1725191431147,0.98834359,58236.0,58235.0,0.18359176]
[1725191433014,1.16839459,58236.0,58235.0,0.18359176]
[1725191438622,0.91277857,58236.0,58235.0,0.18359176]
[1725191439207,1.03285057,58236.0,58235.0,0.18359176]
[1725191439409,1.20456557,58236.0,58235.0,0.18359176]
[1725191439610,1.18796557,58236.0,58235.0,0.18359176]
[1725191441053,0.84453557,58236.0,58235.0,0.18359176]
[1725191442668,0.83249457,58236.0,58235.0,0.18359176]
[1725191443096,0.49417659,58236.0,58235.0,0.18359176]
[1725191443300,0.30148359,58236.0,58235.0,0.18359176]
[1725191443545,0.12976859,58236.0,58235.0,0.18359176]
[1725191443743,0.02976859,58236.0,58235.0,0.18359176]
[1725191446823,0.20148359,58236.0,58235.0,0.18359176]
[1725191447008,0.30148359,58236.0,58235.0,0.18359176]
[1725191447518,0.12976859,58236.0,58235.0,0.18359176]
[1725191448822,0.12806859,58236.0,58235.0,0.18359176]
[1725191449042,0.29978359,58236.0,58235.0,0.18359176]
[1725191450540,0.12636859,58236.0,58235.0,0.18359176]
[1725191451128,0.75027959,58236.0,58235.0,0.18359176]
[1725191453466,0.88052959,58236.0,58235.0,0.18359176]
[1725191453878,0.81786959,58236.0,58235.0,0.18359176]
[1725191454292,1.16129959,58236.0,58235.0,0.18359176]
[1725191455482,0.97520959,58236.0,58235.0,0.18359176]
[1725191455689,0.96316859,58236.0,58235.0,0.18359176]
[1725191457185,0.12636859,58236.0,58235.0,0.18359176]
[1725191457417,0.19808359,58236.0,58235.0,0.18359176]
[1725191457613,0.29808359,58236.0,58235.0,0.18359176]
[1725191460009,0.12636859,58236.0,58235.0,0.18359176]
[1725191460245,0.19808359,58236.0,58235.0,0.20259787]
[1725191460443,0.29808359,58236.0,58235.0,0.25402333]
[1725191460855,0.29808359,58236.0,58235.0,0.25403353]
[1725191461060,0.29808359,58236.0,58235.0,0.23502742]
[1725191461439,0.29808359,58236.0,58235.0,0.25403342]
[1725191461650,0.29808359,58236.0,58235.0,0.20259692]
[1725191461846,0.29808359,58236.0,58235.0,0.25403258]
[1725191462423,0.29808359,58236.0,58235.0,0.20259692]
[1725191462653,0.29808359,58236.0,58235.0,0.18359176]
[1725191463087,0.29638359,58236.0,58235.0,0.18359176]
[1725191463292,0.40384359,58236.0,58235.0,0.18359176]
[1725191463495,0.379993,58236.0,58235.0,0.18359176]
[1725191464101,0.379993,58236.0,58235.0,0.04259176]
[1725191465472,0.723423,58236.0,58235.0,0.04259176]
[1725191465679,1.066853,58236.0,58235.0,0.04259176]
[1725191466260,1.09380272,58236.0,58235.0,0.04259176]
[1725191471180,1.43723272,58236.0,58235.0,0.04259176]
[1725191471473,1.50253272,58236.0,58235.0,0.0258998]
[1725191474000,1.22572079,58236.0,58235.0,0.0258998]
[1725191475335,1.39743579,58236.0,58235.0,0.0258998]
[1725191476176,1.49743579,58236.0,58235.0,0.0258998]
[1725191476394,1.39425472,58236.0,58235.0,0.0258998]
[1725191476628,2.53080872,58236.0,58235.0,0.0258998]
[1725191477726,1.59900872,58236.0,58235.0,0.0258998]
[1725191477907,1.59900872,58236.0,58235.0,0.03464176]
[1725191479409,1.59331221,58236.0,58235.0,0.03464176]
[1725191481043,2.00204221,58236.0,58235.0,0.0258998]
[1725191481329,2.08164221,58236.0,58235.0,0.0258998]
[1725191485011,2.08246021,58236.0,58235.0,0.0258998]
[1725191485289,2.08246021,58236.0,58235.0,0.0108998]
[1725191491498,2.1004451,58236.0,58235.0,0.0108998]
[1725191492617,1.8303911,58236.0,58235.0,0.0108998]
[1725191492751,5.5966691,58236.0,58235.0,0.0108998]
[1725191492958,1.8303911,58236.0,58235.0,0.0108998]
[1725191493360,4.9891051,58236.0,58235.0,0.0158998]
[1725191493566,4.7829111,58236.0,58235.0,0.0158998]
[1725191494260,4.7719361,58236.0,58235.0,0.0158998]
[1725191495707,4.5789491,58236.0,58235.0,0.0158998]
[1725191496634,4.5572551,58236.0,58235.0,0.0158998]
[1725191497632,4.4480701,58236.0,58235.0,0.0158998]
[1725191498604,4.3719551,58236.0,58235.0,0.0158998]
[1725191499839,4.3235551,58236.0,58235.0,0.0158998]
[1725191501148,4.1451731,58236.0,58235.0,0.0158998]
[1725191503276,1.6854911,58236.0,58235.0,0.0158998]
[1725191503477,4.2773471,58236.0,58235.0,0.0158998]
[1725191503688,1.6854911,58236.0,58235.0,0.0158998]
[1725191503903,3.9124621,58236.0,58235.0,0.0158998]
[1725191504106,4.2340591,58236.0,58235.0,0.0158998]
[1725191505994,4.2223711,58236.0,58235.0,0.0158998]
[1725191510140,4.1073381,58236.0,58235.0,0.0158998]
[1725191513747,4.1073381,58236.0,58235.0,0.02501176]
[1725191519879,3.5451531,58236.0,58235.0,0.03001176]
[1725191520085,3.3192231,58236.0,58235.0,0.03001176]
[1725191521102,2.8425671,58236.0,58235.0,0.03001176]
[1725191521592,2.8425671,58236.0,58235.0,0.03501176]
[1725191522444,2.8425671,58236.0,58235.0,0.0258998]
[1725191524482,1.3420611,58236.0,58235.0,0.0258998]
[1725191525338,3.3170931,58236.0,58235.0,0.0258998]
[1725191530028,1.7044301,58236.0,58235.0,0.1717998]
[1725191531333,1.09388521,58236.0,58235.0,0.1717998]
[1725191531542,1.09388521,58236.0,58235.0,0.20186532]
[1725191533711,0.02776772,58236.0,58235.0,0.20186532]
[1725191533919,0.000818,58248.0,58247.0,0.332582]
[1725191534121,0.000818,58248.0,58247.0,0.1839]
[1725191534337,0.000818,58248.0,58247.0,0.23537455]
[1725191534600,0.000818,58248.0,58247.0,0.1839]
[1725191534811,0.000818,58248.0,58247.0,0.22510676]
[1725191534812,0.172497,58248.0,58247.0,0.22510676]
[1725191535039,0.000818,58248.0,58247.0,0.22510676]
[1725191535242,0.001818,58248.0,58247.0,0.23410676]
[1725191535394,0.424265,58248.0,58247.0,0.23410676]
[1725191535833,0.392511,58248.0,58247.0,0.23410676]
[1725191536877,0.56519,58248.0,58247.0,0.24210676]
[1725191537718,0.56519,58248.0,58247.0,0.2009]
[1725191538605,0.59213258,58248.0,58247.0,0.2009]
[1725191539729,0.93549158,58248.0,58247.0,0.2009]
[1725191541306,0.908549,58248.0,58247.0,0.2009]
[1725191542377,0.9354916,58248.0,58247.0,0.2009]
[1725191542571,0.9354916,58248.0,58247.0,0.22149]
[1725191543388,1.0354916,58248.0,58247.0,0.22149]
[1725191544352,0.5447986,58248.0,58247.0,0.22149]
[1725191552711,0.0269426,58248.0,58247.0,0.22149]
[1725191552839,0.1986216,58248.0,58247.0,0.22149]
[1725191553853,0.1986216,58248.0,58247.0,0.2223898]
[1725191554300,0.1994396,58248.0,58247.0,0.2223898]
[1725191560225,0.1994396,58248.0,58247.0,0.24140654]
[1725191561446,0.1994396,58248.0,58247.0,0.2223898]
[1725191561669,0.1994396,58248.0,58247.0,0.24140944]
[1725191562104,0.5427986,58248.0,58247.0,0.2223898]
[1725191562353,0.1994396,58248.0,58247.0,0.2223898]
[1725191568058,0.1994396,58248.0,58247.0,0.0534898]
[1725191568059,0.8861576,58248.0,58247.0,0.0534898]
[1725191568395,0.8861576,58248.0,58247.0,0.0328998]
[1725191570305,1.2921166,58248.0,58247.0,0.0328998]
[1725191570524,1.9724926,58248.0,58247.0,0.0328998]
[1725191570764,2.0508926,58248.0,58247.0,0.0328998]
[1725191571469,3.0915386,58248.0,58247.0,0.0328998]
[1725191571710,2.7330516,58248.0,58247.0,0.0328998]
[1725191572371,2.0570076,58248.0,58247.0,0.0328998]
[1725191572572,2.0370076,58248.0,58247.0,0.0328998]
[1725191572849,1.9454666,58248.0,58247.0,0.0328998]
[1725191573528,1.8670666,58248.0,58247.0,0.0328998]
[1725191575765,1.840124,58248.0,58247.0,0.0328998]
[1725191575946,1.86707062,58248.0,58247.0,0.0328998]
[1725191576148,1.69457362,58248.0,58247.0,0.0328998]
[1725191576371,1.86625262,58248.0,58247.0,0.0328998]
[1725191578063,1.86707062,58248.0,58247.0,0.0328998]
[1725191578922,2.21042962,58248.0,58247.0,0.0328998]
[1725191579127,2.28882962,58248.0,58247.0,0.0328998]
[1725191581172,2.261883,58248.0,58247.0,0.0328998]
[1725191584639,2.28883104,58248.0,58247.0,0.0328998]
[1725191587074,2.14783104,58248.0,58247.0,0.0328998]
[1725191587278,1.80447204,58248.0,58247.0,0.0328998]
[1725191587482,1.80447204,58248.0,58247.0,0.04262978]
[1725191591286,1.777524,58248.0,58247.0,0.04262978]
[1725191592912,1.777524,58248.0,58247.0,0.0328998]
[1725191594538,1.302574,58248.0,58247.0,0.0328998]
[1725191594774,3.67941147,58248.0,58247.0,0.0328998]
[1725191594991,1.32952047,58248.0,58247.0,0.0328998]
[1725191595170,3.62518447,58248.0,58247.0,0.0328998]
[1725191595387,1.32952047,58248.0,58247.0,0.0328998]
[1725191595672,1.47212047,58248.0,58247.0,0.04262978]
[1725191598425,1.47212047,58248.0,58247.0,0.10322978]
[1725191598591,1.47212047,58248.0,58247.0,0.18382978]
[1725191601277,1.445174,58248.0,58247.0,0.18382978]
[1725191605104,1.302574,58248.0,58247.0,0.18382978]
[1725191605346,1.819451,58248.0,58247.0,0.18382978]
[1725191606026,1.84639679,58248.0,58247.0,0.18382978]
[1725191611026,1.82651279,58248.0,58247.0,0.18382978]
[1725191611267,1.799567,58248.0,58247.0,0.18382978]
[1725191612470,0.831262,58248.0,58247.0,0.18382978]
[1725191612691,0.741246,58248.0,58247.0,0.18382978]
[1725191614601,0.76819316,58248.0,58247.0,0.18382978]
[1725191617953,0.12776516,58248.0,58247.0,0.18382978]
[1725191619372,0.02776516,58248.0,58247.0,0.37851178]
[1725191622430,0.02776516,58248.0,58247.0,0.42997878]
[1725191622605,0.02776516,58248.0,58247.0,0.37851178]
[1725191624438,0.02776516,58248.0,58247.0,0.42996176]
[1725191624797,0.02776516,58248.0,58247.0,0.37851178]
[1725191625219,0.02776516,58248.0,58247.0,0.42995431]
[1725191625721,0.02776516,58248.0,58247.0,0.42995152]
[1725191626406,0.02776516,58248.0,58247.0,0.42994097]
[1725191626576,0.02776516,58248.0,58247.0,0.37851178]
[1725191626787,0.02776516,58248.0,58247.0,0.20682978]
[1725191627299,0.61836916,58248.0,58247.0,0.20682978]
[1725191627503,0.68102916,58248.0,58247.0,0.20682978]
[1725191629544,0.02776516,58248.0,58247.0,0.20682978]
[1725191631488,0.19944416,58248.0,58247.0,0.20682978]
[1725191632468,0.66862416,58248.0,58247.0,0.20682978]
[1725191632670,0.48780716,58248.0,58247.0,0.20682978]
[1725191633584,0.34880716,58248.0,58247.0,0.20682978]
[1725191635847,0.51745416,58248.0,58247.0,0.20682978]
[1725191636517,0.50429116,58248.0,58247.0,0.20682978]
[1725191637175,0.49159116,58248.0,58247.0,0.20682978]
[1725191637390,0.49159116,58248.0,58247.0,0.12622978]
[1725191637639,0.19433626,58248.0,58247.0,0.12622978]
[1725191637892,0.317646,58248.0,58247.0,0.12622978]
[1725191638128,0.171679,58248.0,58247.0,0.12622978]
[1725191638351,0.343879,58248.0,58247.0,0.12622978]
[1725191639665,0.171679,58248.0,58247.0,0.12622978]
[1725191639842,0.360425,58248.0,58247.0,0.12622978]
[1725191643092,0.171679,58248.0,58247.0,0.12622978]
[1725191643505,0.873595,58248.0,58247.0,0.12622978]
[1725191643700,0.796255,58248.0,58247.0,0.12622978]
[1725191644159,1.482973,58248.0,58247.0,0.0328998]
[1725191644415,1.826332,58248.0,58247.0,0.0328998]
[1725191644614,2.062632,58248.0,58247.0,0.0328998]
[1725191647086,1.655663,58248.0,58247.0,0.0328998]
[1725191648372,0.02694276,58249.0,58248.0,0.190679]
[1725191648597,0.02694276,58249.0,58248.0,0.75052482]
[1725191648795,0.02694276,58249.0,58248.0,0.77625181]
[1725191649038,0.02694276,58249.0,58248.0,0.69907084]
[1725191649270,0.02694276,58249.0,58248.0,0.70107084]
[1725191649683,0.02694276,58249.0,58248.0,0.69907084]
[1725191649885,0.02794276,58249.0,58248.0,0.71307084]
[1725191650093,0.02794276,58249.0,58248.0,0.79021971]
[1725191650308,0.02794276,58249.0,58248.0,0.79221971]
[1725191650514,0.02994276,58249.0,58248.0,0.82020495]
[1725191650935,0.02894276,58249.0,58248.0,0.72907084]
[1725191651136,0.02894276,58249.0,58248.0,0.80620621]
[1725191651289,0.02994276,58249.0,58248.0,0.82020621]
[1725191651469,0.02994276,58249.0,58248.0,0.82019387]
[1725191652507,0.02994276,58249.0,58248.0,0.74307084]
[1725191653284,0.02994276,58249.0,58248.0,0.74107084]
[1725191653854,0.02994276,58249.0,58248.0,1.09442984]
[1725191653994,0.02994276,58249.0,58248.0,1.1973378]
[1725191654362,0.02994276,58249.0,58248.0,1.1993378]
[1725191654559,0.02994276,58249.0,58248.0,1.09642984]
[1725191656548,0.000818,58254.0,58248.0,1.09642984]
[1725191656549,0.000818,58254.0,58253.0,0.019]
[1725191656715,0.000818,58254.0,58253.0,1.50380501]
[1725191656921,0.000818,58254.0,58253.0,1.40108316]
[1725191657121,0.000818,58254.0,58253.0,1.52971812]
[1725191657674,0.000818,58254.0,58253.0,1.40108316]
[1725191657852,0.000818,58254.0,58253.0,1.397651]
[1725191658104,0.000818,58254.0,58253.0,1.411651]
[1725191658496,0.000818,58254.0,58253.0,1.53994507]
[1725191659142,0.000818,58254.0,58253.0,1.75498]
[1725191659351,0.000818,58254.0,58253.0,1.74098]
[1725191659555,0.000818,58254.0,58253.0,1.75498]
[1725191659760,0.000818,58254.0,58253.0,1.76898]
[1725191659967,0.000818,58254.0,58253.0,1.75498]
[1725191660395,0.000818,58254.0,58253.0,1.76898]
[1725191660600,0.000818,58254.0,58253.0,1.75498]
[1725191661010,0.000818,58254.0,58253.0,1.78298]
[1725191661620,0.000818,58254.0,58253.0,1.411651]
[1725191662386,0.000818,58254.0,58253.0,1.75498]
[1725191662588,0.000818,58254.0,58253.0,1.74098]
[1725191662794,0.000818,58254.0,58253.0,1.75498]
[1725191663424,0.000818,58254.0,58253.0,1.76898]
[1725191664667,0.000818,58254.0,58253.0,1.78298]
[1725191665087,0.002813,58275.0,58274.0,1.230221]
[1725191665301,0.002813,58275.0,58274.0,1.397921]
[1725191665510,0.002813,58275.0,58274.0,0.709509]
[1725191665749,0.002813,58275.0,58274.0,0.1947]
[1725191666758,0.002813,58275.0,58274.0,0.066]
[1725191666962,0.002813,58275.0,58274.0,0.07]
[1725191667169,0.002813,58275.0,58274.0,0.028]
[1725191667170,0.346013,58275.0,58274.0,0.028]
[1725191667374,0.346013,58275.0,58274.0,0.014]
[1725191667375,0.517613,58275.0,58274.0,0.014]
[1725191667578,0.517613,58275.0,58274.0,0.028]
[1725191667579,0.860813,58275.0,58274.0,0.028]
[1725191667781,0.860813,58275.0,58274.0,0.042]
[1725191667782,0.517613,58275.0,58274.0,0.042]
[1725191668203,0.174413,58275.0,58274.0,0.042]
[1725191668630,0.02974288,58275.0,58274.0,0.1847]
[1725191668861,0.95099648,58280.0,58279.0,0.88694]
[1725191669129,0.95099648,58280.0,58279.0,1.05264]
[1725191669330,0.95099648,58280.0,58279.0,1.05464]
[1725191670373,0.95099648,58280.0,58279.0,1.06864]
[1725191670578,0.95099648,58280.0,58279.0,1.08264]
[1725191672675,0.95099648,58280.0,58279.0,0.057]
[1725191672888,0.64664704,58280.0,58279.0,0.710064]
[1725191673094,0.64664704,58280.0,58279.0,2.137892]
[1725191673315,0.64664704,58280.0,58279.0,2.19097447]
[1725191673538,0.64664704,58280.0,58279.0,2.139892]
[1725191673756,0.64664704,58280.0,58279.0,1.727592]
[1725191673959,0.64664704,58280.0,58279.0,1.741592]
[1725191674179,0.64664704,58280.0,58279.0,1.764592]
[1725191674404,0.64664704,58280.0,58279.0,1.750592]
[1725191675981,0.49674704,58280.0,58279.0,1.750592]
[1725191676107,0.49674704,58280.0,58279.0,1.764592]
[1725191676325,0.49674704,58280.0,58279.0,1.750592]
[1725191676732,0.49674704,58280.0,58279.0,1.764592]
[1725191676927,0.49674704,58280.0,58279.0,1.84121571]
[1725191677500,0.49674704,58280.0,58279.0,1.81321571]
[1725191677725,0.49674704,58280.0,58279.0,1.764592]
[1725191678860,0.49674704,58280.0,58279.0,1.84121571]
[1725191679066,0.49674704,58280.0,58279.0,1.82721571]
[1725191679339,0.49674704,58280.0,58279.0,1.750592]
[1725191679540,0.49674704,58280.0,58279.0,1.84086668]
[1725191679768,0.49674704,58280.0,58279.0,1.49769068]
[1725191679900,0.49674704,58280.0,58279.0,1.421416]
[1725191680560,0.49674704,58280.0,58279.0,1.49769068]
[1725191682711,0.49674704,58280.0,58279.0,1.764592]
[1725191682918,0.49674704,58280.0,58279.0,1.86629158]
[1725191683136,0.49674704,58280.0,58279.0,1.764592]
[1725191683671,0.49674704,58280.0,58279.0,1.86620109]
[1725191683869,0.49674704,58280.0,58279.0,1.86620192]
[1725191684321,0.49674704,58280.0,58279.0,1.86621097]
[1725191684914,0.49674704,58280.0,58279.0,1.86710967]
[1725191685135,0.00818,58284.0,58283.0,1.713488]
[1725191685445,0.00818,58284.0,58283.0,1.836488]
[1725191686217,0.00818,58284.0,58283.0,1.850488]
[1725191686823,0.00818,58284.0,58283.0,1.60889903]
[1725191687060,0.00818,58284.0,58283.0,1.521335]
[1725191687320,0.00818,58284.0,58283.0,1.535335]
[1725191687673,0.00818,58284.0,58283.0,1.62289903]
[1725191688047,0.00818,58284.0,58283.0,1.98005203]
[1725191688272,0.00818,58284.0,58283.0,1.97805203]
[1725191688479,0.00818,58284.0,58283.0,1.98005203]
[1725191688886,0.26816019,58306.0,58305.0,0.014]
[1725191688999,0.26816019,58306.0,58305.0,0.037]
[1725191689204,0.43966819,58306.0,58305.0,0.037]
[1725191689398,0.171508,58306.0,58305.0,0.037]
[1725191690005,0.171508,58306.0,58305.0,0.042]
[1725191690199,0.171508,58306.0,58305.0,0.056]
[1725191690405,0.514525,58306.0,58305.0,0.051]
[1725191690606,0.343131,58309.0,58305.0,0.051]
[1725191690607,0.179684,58308.0,58306.0,0.014]
[1725191690803,0.00818,58308.0,58306.0,0.208508]
[1725191691812,0.07368,58307.0,58306.0,0.208508]
[1725191692323,0.07368,58307.0,58306.0,0.556525]
[1725191692535,0.07368,58307.0,58306.0,0.213508]
[1725191692751,0.07368,58307.0,58306.0,0.227508]
[1725191692958,0.07368,58307.0,58306.0,0.570525]
[1725191693177,0.07368,58307.0,58306.0,0.213508]
[1725191693400,0.07368,58307.0,58306.0,0.227508]
[1725191693617,0.07368,58307.0,58306.0,0.241508]
[1725191694231,0.07368,58307.0,58306.0,0.584525]
[1725191697071,0.07368,58307.0,58306.0,0.927542]
[1725191697505,0.07368,58307.0,58306.0,0.584525]
[1725191698926,0.00818,58307.0,58306.0,0.99038043]
[1725191699150,0.00818,58307.0,58306.0,0.939542]
[1725191699390,0.00818,58307.0,58306.0,0.99044033]
[1725191699632,0.00818,58307.0,58306.0,1.01589178]
[1725191699862,0.00818,58307.0,58306.0,0.939542]
[1725191700086,0.00818,58307.0,58306.0,1.01590967]
[1725191700546,0.00818,58307.0,58306.0,0.939542]
[1725191701001,0.00818,58307.0,58306.0,0.937542]
[1725191701232,0.00818,58307.0,58306.0,1.081442]
[1725191701477,0.00818,58307.0,58306.0,1.424459]
[1725191701731,0.00818,58307.0,58306.0,1.06687761]
[1725191701981,0.00818,58307.0,58306.0,0.937542]
[1725191702294,0.00818,58307.0,58306.0,0.6963968]
[1725191702417,0.00818,58307.0,58306.0,0.6843968]
[1725191702663,0.00818,58307.0,58306.0,0.6983968]
[1725191702902,0.00818,58307.0,58306.0,0.939542]
[1725191703150,0.00818,58307.0,58306.0,0.568525]
[1725191703411,0.00818,58307.0,58306.0,0.580525]
[1725191703654,0.00818,58307.0,58306.0,0.939542]
[1725191703912,0.00818,58307.0,58306.0,0.925542]
[1725191704160,0.00818,58307.0,58306.0,1.06695822]
[1725191704917,0.00818,58307.0,58306.0,1.05295822]
[1725191705119,0.00818,58307.0,58306.0,1.03895822]
[1725191705322,0.00818,58307.0,58306.0,0.925542]
[1725191705542,0.00818,58307.0,58306.0,1.19490137]
[1725191705711,0.00818,58307.0,58306.0,1.396459]
[1725191706121,0.00818,58307.0,58306.0,1.410459]
[1725191706337,0.00818,58307.0,58306.0,1.424459]
[1725191708746,0.00818,58307.0,58306.0,1.4253577]
[1725191709153,0.00818,58307.0,58306.0,1.8683747]
[1725191709360,0.00818,58307.0,58306.0,1.67805727]
[1725191709827,0.00818,58307.0,58306.0,1.5253577]
[1725191711277,0.00818,58307.0,58306.0,2.02151376]
[1725191711495,0.00818,58307.0,58306.0,1.5253577]
[1725191711699,0.00818,58307.0,58306.0,1.52514455]
[1725191711907,0.00818,58307.0,58306.0,1.86816155]
[1725191712990,0.45194958,58331.0,58330.0,0.01378685]
[1725191714104,0.0004,58339.0,58332.0,0.00878685]
[1725191714105,0.30632007,58334.0,58332.0,0.00878685]
[1725191714334,0.30632007,58334.0,58330.0,0.005]
[1725191714335,0.47774607,58334.0,58333.0,0.00878685]
[1725191715523,0.0004,58339.0,58338.0,0.01378685]
[1725191716033,0.1439,58339.0,58338.0,0.01378685]
[1725191716281,0.598171,58339.0,58338.0,0.01378685]
[1725191716542,0.2439,58339.0,58338.0,0.01378685]
[1725191717039,0.354373,58339.0,58338.0,0.01378685]
[1725191717276,0.354373,58339.0,58338.0,0.02778685]
[1725191717277,0.1004,58339.0,58338.0,0.02778685]
[1725191717555,0.1439,58339.0,58338.0,0.02778685]
[1725191717799,0.2439,58339.0,58338.0,0.02778685]
[1725191718039,0.352373,58339.0,58338.0,0.02778685]
[1725191718282,0.352373,58339.0,58338.0,0.04178685]
[1725191718283,0.24053738,58339.0,58338.0,0.04178685]
[1725191718557,0.00121315,58364.0,58338.0,0.04178685]
[1725191718558,0.0785,58345.0,58342.0,0.00878685]
[1725191718786,0.0785,58351.0,58342.0,0.54642332]
[1725191719022,0.0785,58351.0,58342.0,1.25503532]
[1725191719265,0.0785,58351.0,58342.0,1.33159952]
[1725191719489,0.0785,58351.0,58342.0,1.25703532]
[1725191719983,0.0785,58351.0,58342.0,1.27103532]
[1725191720415,0.17138,58350.0,58342.0,0.62093874]
[1725191720619,0.0785,58351.0,58342.0,0.58399585]
[1725191720834,0.171381,58350.0,58342.0,0.57899585]
[1725191721013,0.171381,58350.0,58342.0,0.58399585]
[1725191721262,0.0785,58351.0,58342.0,0.22218985]
[1725191721263,0.065,58344.0,58342.0,0.22218985]
[1725191721443,0.065,58344.0,58342.0,0.06478685]
[1725191721674,0.065,58344.0,58342.0,0.23618985]
[1725191722059,0.065,58350.0,58342.0,0.58399585]
[1725191722268,0.065,58350.0,58342.0,0.57899585]
[1725191722474,0.065,58350.0,58342.0,0.58399585]
[1725191724125,0.065,58350.0,58342.0,0.93680185]
[1725191724340,0.00727,58343.0,58342.0,0.93680185]
[1725191726376,0.00727,58343.0,58342.0,1.27960785]
[1725191726955,0.00727,58343.0,58342.0,0.93680185]
[1725191727264,0.00727,58343.0,58342.0,0.90880185]
[1725191727825,0.00727,58343.0,58342.0,0.93680185]
[1725191728075,0.00727,58343.0,58342.0,0.92280185]
[1725191728322,0.00727,58343.0,58342.0,1.26560785]
[1725191728548,0.00727,58343.0,58342.0,1.27960785]
[1725191729018,0.00727,58343.0,58342.0,0.92280185]
[1725191729694,0.00727,58343.0,58342.0,1.26760785]
[1725191730394,0.00727,58343.0,58342.0,1.28160785]
[1725191730644,0.00727,58343.0,58342.0,1.26760785]
[1725191731260,0.00727,58343.0,58342.0,1.35050785]
[1725191731474,0.00727,58343.0,58342.0,1.36450785]
[1725191731690,0.00727,58343.0,58342.0,1.00570185]
[1725191732134,0.00727,58343.0,58342.0,1.37650785]
[1725191732314,0.00727,58343.0,58342.0,1.36250785]
[1725191732848,0.00727,58343.0,58342.0,1.36450785]
[1725191733394,0.00727,58343.0,58342.0,1.00570185]
[1725191733628,0.00727,58343.0,58342.0,0.93680185]
[1725191734147,0.00727,58343.0,58342.0,0.95080185]
[1725191734346,0.00727,58343.0,58342.0,0.95280185]
[1725191734550,0.00727,58343.0,58342.0,0.93880185]
[1725191734754,0.00727,58343.0,58342.0,0.92480185]
[1725191735160,0.00727,58343.0,58342.0,0.93880185]
[1725191735336,0.00727,58343.0,58342.0,0.91080185]
[1725191736743,0.00727,58343.0,58342.0,0.92480185]
[1725191736946,0.00727,58343.0,58342.0,0.93880185]
[1725191737350,0.00727,58343.0,58342.0,0.92480185]
[1725191737989,0.00727,58343.0,58342.0,0.93880185]
[1725191738148,0.00727,58343.0,58342.0,0.95280185]
[1725191738389,0.02689599,58351.0,58350.0,0.03078685]
[1725191738573,0.0631,58371.0,58358.0,0.20214285]
[1725191738912,0.0631,58371.0,58358.0,1.22827885]
[1725191738913,0.02689435,58365.0,58358.0,1.22827885]
[1725191739124,0.0631,58371.0,58358.0,1.25127885]
[1725191739290,0.06167,58371.0,58370.0,0.01378685]
[1725191739923,0.06167,58371.0,58370.0,0.18510685]
[1725191741047,0.06167,58371.0,58370.0,0.01378685]
[1725191741273,0.06167,58371.0,58370.0,0.02078685]
[1725191741705,0.06167,58371.0,58370.0,0.03278685]
[1725191742350,0.0885586,58371.0,58370.0,0.03278685]
[1725191743317,0.0885586,58371.0,58370.0,0.89438885]
[1725191743318,0.0268886,58371.0,58370.0,0.89438885]
[1725191743546,0.0268886,58371.0,58370.0,0.91738885]
[1725191743905,0.0277056,58371.0,58370.0,0.91738885]
[1725191744127,0.0277056,58371.0,58370.0,0.56274785]
[1725191744329,0.0277056,58371.0,58370.0,0.04378685]
[1725191744544,0.0277056,58371.0,58370.0,0.22710685]
[1725191744798,0.0277056,58371.0,58370.0,0.22010685]
[1725191745151,0.000817,58371.0,58370.0,0.22210685]
[1725191745334,0.000817,58371.0,58370.0,0.23610685]
[1725191745690,0.000817,58371.0,58370.0,0.06478685]
[1725191746068,0.000817,58371.0,58370.0,0.04178685]